[Event "XLII Barbera Open 2019"]
[Site "Barbera"]
[Date "2019.07.07"]
[Round "4.2"]
[White "Harikrishnan.A.Ra"]
[Black "Peralta, Fernando"]
[Result "0-1"]
[ECO "B09"]
[WhiteElo "2401"]
[BlackElo "2562"]
[Annotator "ChessBase"]
[PlyCount "66"]
[EventDate "2019.07.04"]
[EventType "swiss"]
[EventCountry "ESP"]
[SourceTitle "playchess.com"]
[Source "ChessBase"]
[SourceQuality "1"]
[TimeControl "5400+30"]

1. e4 {[%emt 0:00:00]} d6 {[%emt 0:02:13]} 2. d4 {[%emt 0:00:00]} Nf6 {[%emt 0:00:03]} 3. Nc3 {[%emt 0:00:00]} g6 {[%emt 0:00:03]} 4. f4 {[%emt 0:00:05]} Bg7 {[%emt 0:00:45]} 5. Nf3 {[%emt 0:00:02]} O-O {[%emt 0:00:28]} 6. e5 {[%emt 0:00:24]} dxe5 {[%emt 0:00:54]} 7. fxe5 {[%emt 0:00:02]} Nd5 {[%emt 0:00:21]} 8. Bc4 {[%emt 0:00:02]} Nb6 {[%emt 0:01:41]} 9. Bb3 {[%emt 0:00:59]} Nc6 {[%emt 0:01:08]} 10. O-O {[%emt 0:00:39]} Bg4 {[%emt 0:01:58]} 11. Be3 {[%emt 0:00:46]} Na5 {[%emt 0:00:33]} 12. h3 {[%emt 0:03:07]} Nbc4 {[%emt 0:05:49]} 13. Bc1 {[%emt 0:05:28]} Bxf3 {[%emt 0:03:08]} 14. Rxf3 {[%emt 0:01:28]} c5 {[%emt 0:00:45]} 15. Rd3 cxd4 {[%emt 0:38:33]} 16. Rxd4 {[%emt 0:05:33]} Qc7 {[%emt 0:01:54]} 17. Nd5 {[%emt 0:29:25]} Qc5 {[%emt 0:03:07]} 18. Nxe7+ {[%emt 0:28:41]} Qxe7 {[%emt 0:23:08]} 19. Bxc4 {[%emt 0:00:09]} Bxe5 {[%emt 0:00:26]} 20. Re4 {[%emt 0:01:16]} Bh2+ {[%emt 0:00:25]} 21. Kxh2 {[%emt 0:00:05]} Qxe4 {[%emt 0:00:03]} 22. Bd3 {[%emt 0:00:14]} Qe5+ {[%emt 0:01:24]} 23. Kh1 {[%emt 0:00:17]} Rfe8 {[%emt 0:01:38]} 24. Bd2 {[%emt 0:01:46]} Nc6 {[%emt 0:00:18]} 25. Bc3 {[%emt 0:00:02]} Qf4 {[%emt 0:00:30]} 26. Qg1 {[%emt 0:01:32]} Rad8 {[%emt 0:06:25]} 27. Qc5 {[%emt 0:02:13]} Ne5 {[%emt 0:03:26]} 28. Bb5 {[%emt 0:00:47]} Nf3 {[%emt 0:02:21]} 29. gxf3 Qxf3+ {[%emt 0:00:01]} 30. Kh2 {[%emt 0:01:03]} Re3 31. Rf1 {[%emt 0:06:05]} Qg3+ {[%emt 0:01:10]} 32. Kh1 {[%emt 0:00:02]} Qxh3+ {[%emt 0:00:05]} 33. Kg1 {[%emt 0:00:02]} Qg4+ {[%emt 0:00:32]} 0-1

[Event "XLII Barbera Open 2019"]
[Site "Barbera"]
[Date "2019.07.07"]
[Round "4.3"]
[White "Bobadilla Viera, Jorge Samuel"]
[Black "Rios, Cristhian Camilo"]
[Result "0-1"]
[ECO "A06"]
[WhiteElo "2381"]
[BlackElo "2520"]
[Annotator "ChessBase"]
[PlyCount "52"]
[EventDate "2019.07.04"]
[EventType "swiss"]
[EventCountry "ESP"]
[SourceTitle "playchess.com"]
[Source "ChessBase"]
[SourceQuality "1"]
[TimeControl "5400+30"]

1. Nf3 {[%emt 0:00:00]} d5 {[%emt 0:17:00]} 2. g3 {[%emt 0:00:00]} g6 {[%emt 0:00:05]} 3. Bg2 {[%emt 0:00:00]} Bg7 {[%emt 0:00:04]} 4. d4 {[%emt 0:00:00]} Nf6 {[%emt 0:00:05]} 5. O-O {[%emt 0:00:04]} O-O {[%emt 0:00:05]} 6. c4 {[%emt 0:00:06]} Nc6 {[%emt 0:00:04]} 7. cxd5 {[%emt 0:02:07]} Nxd5 {[%emt 0:00:06]} 8. Nc3 {[%emt 0:00:02]} Nxc3 {[%emt 0:00:16]} 9. bxc3 {[%emt 0:00:02]} e5 10. d5 {[%emt 0:11:09]} Na5 {[%emt 0:01:58]} 11. e4 {[%emt 0:00:17]} c6 {[%emt 0:00:22]} 12. Ba3 {[%emt 0:13:25]} Re8 {[%emt 0:02:44]} 13. dxc6 {[%emt 0:02:25]} Nxc6 14. Rb1 {[%emt 0:01:42]} Qa5 {[%emt 0:08:10]} 15. Qc1 b6 {[%emt 0:03:29]} 16. Rd1 {[%emt 0:02:52]} Be6 {[%emt 0:00:30]} 17. Bf1 {[%emt 0:04:21]} Rac8 {[%emt 0:05:55]} 18. Nd2 {[%emt 0:24:46]} Nd4 19. Rb4 Bh6 {[%emt 0:17:07]} 20. f4 {[%emt 0:04:44]} exf4 {[%emt 0:03:00]} 21. Rxd4 {[%emt 0:15:48]} Rxc3 {[%emt 0:03:09]} 22. Nc4 {[%emt 0:00:21]} Rxc1 {[%emt 0:02:17]} 23. Bxc1 Qc5 {[%emt 0:05:34]} 24. gxf4 {[%emt 0:00:36]} Bxc4 {[%emt 0:00:20]} 25. Bxc4 {[%emt 0:00:19]} Rxe4 {[%emt 0:00:15]} 26. Ba3 {[%emt 0:00:07]} Rxd4 0-1

[Event "XLII Barbera Open 2019"]
[Site "Barbera"]
[Date "2019.07.07"]
[Round "4.4"]
[White "Munoz, Miguel"]
[Black "Valenzuela Gomez, Fernando"]
[Result "1/2-1/2"]
[ECO "B20"]
[WhiteElo "2511"]
[BlackElo "2394"]
[Annotator "ChessBase"]
[PlyCount "30"]
[EventDate "2019.07.04"]
[EventType "swiss"]
[EventCountry "ESP"]
[SourceTitle "playchess.com"]
[Source "ChessBase"]
[SourceQuality "1"]
[TimeControl "5400+30"]

1. e4 {[%emt 0:16:25]} c5 {[%emt 0:00:25]} 2. g3 {[%emt 0:00:19]} Nc6 {[%emt 0:00:54]} 3. Bg2 {[%emt 0:00:09]} g6 {[%emt 0:00:26]} 4. Ne2 {[%emt 0:00:06]} Bg7 {[%emt 0:00:24]} 5. c3 {[%emt 0:00:20]} e5 {[%emt 0:00:40]} 6. d3 {[%emt 0:00:08]} d6 {[%emt 0:00:51]} 7. Be3 {[%emt 0:00:15]} Nf6 {[%emt 0:00:45]} 8. h3 {[%emt 0:00:12]} O-O {[%emt 0:00:48]} 9. O-O {[%emt 0:00:21]} b6 {[%emt 0:00:13]} 10. f4 {[%emt 0:00:44]} d5 {[%emt 0:06:19]} 11. fxe5 {[%emt 0:00:40]} Nxe5 {[%emt 0:00:24]} 12. Bf4 {[%emt 0:00:06]} Nc6 {[%emt 0:06:26]} 13. Bg5 {[%emt 0:02:10]} dxe4 {[%emt 0:02:52]} 14. Nd2 {[%emt 0:00:19]} h6 {[%emt 0:10:51]} 15. Bxf6 {[%emt 0:06:19]} Bxf6 {[%emt 0:00:05]} 1/2-1/2

[Event "XLII Barbera Open 2019"]
[Site "Barbera"]
[Date "2019.07.07"]
[Round "4.5"]
[White "Leon Valdes, Jony Wilson"]
[Black "Moskalenko, Viktor"]
[Result "0-1"]
[ECO "E84"]
[WhiteElo "2364"]
[BlackElo "2500"]
[Annotator "ChessBase"]
[PlyCount "162"]
[EventDate "2019.07.04"]
[EventType "swiss"]
[EventCountry "ESP"]
[SourceTitle "playchess.com"]
[Source "ChessBase"]
[SourceQuality "1"]
[TimeControl "5400+30"]

1. d4 {[%emt 0:16:51]} Nf6 {[%emt 0:00:20]} 2. c4 {[%emt 0:00:06]} g6 {[%emt 0:00:22]} 3. f3 {[%emt 0:00:05]} Bg7 {[%emt 0:00:04]} 4. e4 {[%emt 0:00:05]} d6 {[%emt 0:00:10]} 5. Ne2 {[%emt 0:00:09]} O-O {[%emt 0:00:08]} 6. Nbc3 {[%emt 0:00:29]} a6 {[%emt 0:04:41]} 7. Be3 {[%emt 0:01:28]} Nc6 {[%emt 0:00:41]} 8. Qd2 {[%emt 0:01:24]} Rb8 {[%emt 0:05:58]} 9. d5 Ne5 {[%emt 0:20:24]} 10. Ng3 {[%emt 0:06:11]} h5 {[%emt 0:04:04]} 11. Be2 {[%emt 0:00:13]} h4 12. Nf1 {[%emt 0:00:06]} h3 {[%emt 0:01:37]} 13. g4 {[%emt 0:03:25]} b5 {[%emt 0:01:06]} 14. cxb5 {[%emt 0:07:42]} axb5 {[%emt 0:00:38]} 15. Ng3 c5 {[%emt 0:29:17]} 16. dxc6 {[%emt 0:10:10]} b4 {[%emt 0:01:14]} 17. Nd1 {[%emt 0:00:54]} Nxc6 {[%emt 0:03:35]} 18. Nf2 {[%emt 0:03:45]} Qa5 {[%emt 0:08:29]} 19. O-O {[%emt 0:02:58]} b3 {[%emt 0:03:18]} 20. Qxa5 {[%emt 0:09:34]} Nxa5 {[%emt 0:00:03]} 21. axb3 {[%emt 0:10:32]} Nxb3 {[%emt 0:00:16]} 22. Ra7 {[%emt 0:00:17]} Nd7 {[%emt 0:01:55]} 23. Rb1 {[%emt 0:00:45]} Bd4 {[%emt 0:02:53]} 24. Bxd4 {[%emt 0:00:29]} Nxd4 {[%emt 0:00:01]} 25. Nxh3 {[%emt 0:02:05]} Ne5 {[%emt 0:02:08]} 26. Kf2 {[%emt 0:05:18]} Be6 {[%emt 0:01:28]} 27. Nf4 {[%emt 0:01:49]} Bb3 28. Nd5 {[%emt 0:04:23]} Bxd5 {[%emt 0:02:59]} 29. exd5 {[%emt 0:00:02]} Rfc8 {[%emt 0:00:18]} 30. f4 {[%emt 0:03:42]} Nxe2 {[%emt 0:00:58]} 31. fxe5 {[%emt 0:00:18]} Nc3 {[%emt 0:00:12]} 32. Rf1 {[%emt 0:00:57]} Rxb2+ {[%emt 0:01:47]} 33. Kg1 {[%emt 0:01:20]} Nxd5 {[%emt 0:00:35]} 34. exd6 {[%emt 0:01:20]} Rcc2 {[%emt 0:00:48]} 35. Rf3 {[%emt 0:00:15]} Rg2+ {[%emt 0:00:49]} 36. Kf1 {[%emt 0:00:49]} Rxh2 {[%emt 0:00:23]} 37. Kg1 {[%emt 0:00:03]} exd6 {[%emt 0:01:53]} 38. Raxf7 {[%emt 0:02:21]} Rhg2+ {[%emt 0:01:01]} 39. Kh1 {[%emt 0:01:36]} Rh2+ {[%emt 0:00:02]} 40. Kg1 {[%emt 0:00:06]} Rbg2+ {[%emt 0:00:15]} 41. Kf1 {[%emt 0:00:04]} Ne3+ {[%emt 0:00:14]} 42. Ke1 {[%emt 0:01:15]} Nc2+ {[%emt 0:02:10]} 43. Kf1 {[%emt 0:00:59]} Ne3+ {[%emt 0:00:21]} 44. Ke1 {[%emt 0:00:05]} Rg1+ {[%emt 0:00:32]} 45. Nf1 {[%emt 0:00:06]} Rxf1+ {[%emt 0:00:44]} 46. Rxf1 {[%emt 0:00:08]} Nxf1 {[%emt 0:00:13]} 47. Rxf1 {[%emt 0:00:12]} Kg7 {[%emt 0:00:00]} 48. Rf4 {[%emt 0:00:19]} Rh8 {[%emt 0:00:20]} 49. Rd4 Rd8 {[%emt 0:01:41]} 50. Rd5 {[%emt 0:00:46]} Re8+ {[%emt 0:01:03]} 51. Kf2 {[%emt 0:01:01]} Re6 {[%emt 0:00:11]} 52. Kf3 {[%emt 0:00:10]} Rf6+ {[%emt 0:00:10]} 53. Kg3 {[%emt 0:00:44]} Kf7 {[%emt 0:00:07]} 54. Kh4 {[%emt 0:00:20]} Re6 {[%emt 0:00:13]} 55. Rd1 {[%emt 0:01:42]} Kf6 {[%emt 0:00:05]} 56. Rf1+ {[%emt 0:02:30]} Ke5 {[%emt 0:00:01]} 57. Re1+ {[%emt 0:01:13]} Kd5 {[%emt 0:00:01]} 58. Rd1+ {[%emt 0:00:06]} Kc6 {[%emt 0:01:16]} 59. Rc1+ {[%emt 0:00:06]} Kd7 {[%emt 0:00:05]} 60. Kg5 {[%emt 0:01:33]} d5 {[%emt 0:00:06]} 61. Kf4 {[%emt 0:01:42]} Kd6 {[%emt 0:00:33]} 62. Ra1 {[%emt 0:00:29]} Re4+ {[%emt 0:01:20]} 63. Kg5 {[%emt 0:01:17]} Re6 {[%emt 0:01:21]} 64. Kf4 {[%emt 0:00:02]} Kc5 {[%emt 0:00:22]} 65. Ra5+ {[%emt 0:00:42]} Kc4 {[%emt 0:00:07]} 66. Ra4+ {[%emt 0:00:21]} Kb5 {[%emt 0:00:14]} 67. Ra8 {[%emt 0:00:52]} d4 {[%emt 0:00:19]} 68. Rb8+ {[%emt 0:00:33]} Kc4 {[%emt 0:00:52]} 69. Rc8+ {[%emt 0:00:24]} Kb4 {[%emt 0:01:09]} 70. Rb8+ {[%emt 0:00:19]} Kc3 {[%emt 0:00:07]} 71. Rc8+ {[%emt 0:00:42]} Kd2 {[%emt 0:00:24]} 72. Ra8 {[%emt 0:00:26]} d3 {[%emt 0:00:45]} 73. Kf3 {[%emt 0:00:48]} Rf6+ {[%emt 0:01:01]} 74. Kg2 {[%emt 0:00:28]} Ke2 {[%emt 0:00:28]} 75. Re8+ {[%emt 0:00:19]} Kd1 {[%emt 0:00:07]} 76. Kg3 {[%emt 0:00:15]} Rc6 {[%emt 0:00:55]} 77. Kf3 {[%emt 0:00:55]} d2 {[%emt 0:00:38]} 78. Ra8 {[%emt 0:00:11]} Re6 {[%emt 0:00:45]} 79. Ra1+ {[%emt 0:00:38]} Kc2 {[%emt 0:00:01]} 80. Ra2+ {[%emt 0:00:07]} Kc3 {[%emt 0:00:21]} 81. Ra3+ {[%emt 0:00:10]} Kb2 {[%emt 0:00:08]} 0-1

[Event "XLII Barbera Open 2019"]
[Site "Barbera"]
[Date "2019.07.07"]
[Round "4.6"]
[White "Oliva Castaneda, Kevel"]
[Black "Volkov, Dmitry V"]
[Result "1-0"]
[ECO "E90"]
[WhiteElo "2467"]
[BlackElo "2199"]
[Annotator "ChessBase"]
[PlyCount "119"]
[EventDate "2019.07.04"]
[EventType "swiss"]
[EventCountry "ESP"]
[SourceTitle "playchess.com"]
[Source "ChessBase"]
[SourceQuality "1"]
[TimeControl "5400+30"]

1. d4 {[%emt 0:01:40]} Nf6 {[%emt 0:00:00]} 2. c4 {[%emt 0:00:05]} g6 {[%emt 0:00:00]} 3. Nc3 {[%emt 0:00:06]} Bg7 {[%emt 0:00:00]} 4. e4 {[%emt 0:00:14]} d6 {[%emt 0:00:00]} 5. Nf3 {[%emt 0:00:12]} O-O {[%emt 0:00:00]} 6. h3 {[%emt 0:00:03]} e5 {[%emt 0:00:05]} 7. d5 {[%emt 0:00:08]} a5 {[%emt 0:00:07]} 8. g4 {[%emt 0:00:25]} Na6 {[%emt 0:00:39]} 9. Be3 {[%emt 0:00:09]} Nd7 {[%emt 0:01:52]} 10. a3 {[%emt 0:04:10]} Nb6 11. Rg1 {[%emt 0:03:09]} Kh8 {[%emt 0:02:06]} 12. h4 {[%emt 0:00:33]} f5 {[%emt 0:19:35]} 13. g5 {[%emt 0:01:57]} Qe8 {[%emt 0:03:25]} 14. Nd2 {[%emt 0:07:04]} Nc5 15. b3 {[%emt 0:00:39]} Bd7 {[%emt 0:12:43]} 16. Be2 {[%emt 0:05:47]} Qd8 {[%emt 0:07:59]} 17. f3 {[%emt 0:03:21]} h6 18. Qc2 f4 {[%emt 0:02:07]} 19. Bf2 {[%emt 0:00:44]} hxg5 {[%emt 0:01:14]} 20. Rxg5 {[%emt 0:01:20]} Kh7 {[%emt 0:00:51]} 21. O-O-O {[%emt 0:01:17]} Bf6 {[%emt 0:02:25]} 22. Rg2 {[%emt 0:01:40]} Nc8 {[%emt 0:00:26]} 23. Rh1 {[%emt 0:03:36]} Ne7 {[%emt 0:01:46]} 24. Kb2 {[%emt 0:00:46]} Rh8 {[%emt 0:00:26]} 25. Qd1 {[%emt 0:00:51]} Kg7 {[%emt 0:00:14]} 26. Qg1 Rh5 {[%emt 0:00:04]} 27. Bxc5 {[%emt 0:08:51]} dxc5 {[%emt 0:00:03]} 28. Qxc5 {[%emt 0:00:05]} Rxh4 29. Rgh2 {[%emt 0:03:16]} Rxh2 {[%emt 0:00:40]} 30. Rxh2 {[%emt 0:00:15]} Ng8 {[%emt 0:06:25]} 31. Qf2 {[%emt 0:02:38]} Be7 {[%emt 0:00:44]} 32. c5 Qf8 33. Nc4 {[%emt 0:04:27]} Bxc5 {[%emt 0:08:06]} 34. Qh4 {[%emt 0:06:30]} Qe7 {[%emt 0:00:00]} 35. Qh8+ {[%emt 0:00:13]} Kf8 {[%emt 0:00:26]} 36. Nxe5 Be8 37. Rh7 {[%emt 0:00:42]} Qf6 {[%emt 0:00:56]} 38. Rf7+ {[%emt 0:00:00]} Qxf7 {[%emt 0:00:47]} 39. Nxf7 {[%emt 0:00:21]} Bxf7 {[%emt 0:04:33]} 40. Nb5 {[%emt 0:03:34]} c6 {[%emt 0:00:52]} 41. Qc3 {[%emt 0:01:31]} Be3 {[%emt 0:00:14]} 42. Nc7 {[%emt 0:00:39]} Rd8 {[%emt 0:00:19]} 43. Qxa5 {[%emt 0:02:28]} b6 {[%emt 0:00:59]} 44. Qb4+ {[%emt 0:01:19]} Bc5 {[%emt 0:01:04]} 45. Qc4 {[%emt 0:01:27]} Ne7 {[%emt 0:01:18]} 46. b4 Bd6 47. Ne6+ {[%emt 0:01:03]} Bxe6 {[%emt 0:00:36]} 48. dxe6 {[%emt 0:00:08]} Be5+ {[%emt 0:02:22]} 49. Kc1 {[%emt 0:01:41]} Kg7 {[%emt 0:01:36]} 50. a4 {[%emt 0:00:37]} Ra8 {[%emt 0:00:49]} 51. a5 {[%emt 0:00:06]} bxa5 52. Qc5 {[%emt 0:00:06]} Kf6 {[%emt 0:01:07]} 53. bxa5 {[%emt 0:00:35]} Rd8 {[%emt 0:01:17]} 54. a6 {[%emt 0:00:06]} Bd4 {[%emt 0:04:26]} 55. Qa5 {[%emt 0:02:42]} Rh8 {[%emt 0:00:59]} 56. Bc4 {[%emt 0:00:40]} Rh5 57. Qd8 {[%emt 0:00:09]} Rh1+ {[%emt 0:03:18]} 58. Kc2 {[%emt 0:00:41]} Bc5 {[%emt 0:00:39]} 59. a7 {[%emt 0:00:07]} Bxa7 {[%emt 0:00:20]} 60. Qf8+ 1-0

[Event "XLII Barbera Open 2019"]
[Site "Barbera"]
[Date "2019.07.07"]
[Round "4.7"]
[White "Sreeshwan Maralakshikari"]
[Black "Hernandez, Cristian Andres"]
[Result "1/2-1/2"]
[ECO "E47"]
[WhiteElo "2461"]
[BlackElo "2355"]
[Annotator "ChessBase"]
[PlyCount "60"]
[EventDate "2019.07.04"]
[EventType "swiss"]
[EventCountry "ESP"]
[SourceTitle "playchess.com"]
[Source "ChessBase"]
[SourceQuality "1"]
[TimeControl "5400+30"]

1. d4 {[%emt 0:01:46]} Nf6 {[%emt 0:00:04]} 2. c4 {[%emt 0:00:04]} e6 {[%emt 0:00:54]} 3. Nc3 {[%emt 0:00:05]} Bb4 {[%emt 0:00:32]} 4. e3 {[%emt 0:00:06]} O-O {[%emt 0:00:52]} 5. Bd3 {[%emt 0:00:07]} c5 {[%emt 0:00:09]} 6. Nf3 {[%emt 0:00:08]} d5 {[%emt 0:00:05]} 7. cxd5 {[%emt 0:00:11]} exd5 {[%emt 0:00:12]} 8. dxc5 {[%emt 0:00:05]} Nbd7 {[%emt 0:00:33]} 9. Bd2 {[%emt 0:00:07]} Nxc5 {[%emt 0:00:25]} 10. Be2 {[%emt 0:00:05]} Ne6 {[%emt 0:08:28]} 11. O-O {[%emt 0:01:28]} d4 {[%emt 0:03:27]} 12. exd4 {[%emt 0:01:08]} Nxd4 {[%emt 0:00:06]} 13. Nxd4 {[%emt 0:00:04]} Qxd4 {[%emt 0:00:13]} 14. a3 {[%emt 0:00:49]} Ba5 {[%emt 0:11:48]} 15. b4 {[%emt 0:02:24]} Bb6 {[%emt 0:00:39]} 16. a4 {[%emt 0:17:18]} Ng4 {[%emt 0:19:16]} 17. Be1 {[%emt 0:08:46]} Rd8 {[%emt 0:00:44]} 18. Qxd4 {[%emt 0:07:57]} Bxd4 {[%emt 0:00:23]} 19. h3 {[%emt 0:01:29]} Ne5 {[%emt 0:03:12]} 20. Rd1 {[%emt 0:02:27]} Bf5 {[%emt 0:03:29]} 21. Nb5 {[%emt 0:01:07]} Nc6 {[%emt 0:00:24]} 22. Bf3 {[%emt 0:05:03]} Be5 {[%emt 0:15:52]} 23. Rxd8+ {[%emt 0:00:50]} Rxd8 {[%emt 0:00:04]} 24. Bxc6 {[%emt 0:02:45]} bxc6 {[%emt 0:00:04]} 25. Nxa7 {[%emt 0:00:04]} Bd7 {[%emt 0:02:36]} 26. b5 {[%emt 0:01:45]} cxb5 {[%emt 0:00:05]} 27. axb5 {[%emt 0:00:46]} Rb8 {[%emt 0:02:02]} 28. Bd2 {[%emt 0:02:15]} Bxb5 {[%emt 0:01:19]} 29. Re1 {[%emt 0:00:05]} f6 {[%emt 0:00:40]} 30. Nxb5 {[%emt 0:00:06]} Rxb5 {[%emt 0:00:11]} 1/2-1/2

[Event "XLII Barbera Open 2019"]
[Site "Barbera"]
[Date "2019.07.07"]
[Round "4.8"]
[White "Morales, Jhon Alexander"]
[Black "Diaz Hernandez, Heriberto"]
[Result "1-0"]
[ECO "A15"]
[WhiteElo "2422"]
[BlackElo "2353"]
[Annotator "NA"]
[PlyCount "65"]
[EventDate "2019.07.04"]
[EventType "swiss"]
[EventCountry "ESP"]
[SourceTitle "playchess.com"]
[Source "ChessBase"]
[SourceQuality "1"]
[TimeControl "5400+30"]

1. c4 {[%emt 0:17:10]} Nf6 {[%emt 0:00:00]} 2. g3 {[%emt 0:00:17]} c6 {[%emt 0:01:00]} 3. Nf3 {[%emt 0:00:17]} d5 {[%emt 0:00:06]} 4. Bg2 {[%emt 0:00:03]} Bg4 {[%emt 0:00:40]} 5. Ne5 {[%emt 0:01:19]} Bf5 {[%emt 0:16:50]} 6. cxd5 {[%emt 0:31:23]} cxd5 {[%emt 0:00:12]} 7. Nc3 {[%emt 0:00:11]} Nc6 {[%emt 0:02:54]} 8. Nxc6 {[%emt 0:04:54]} bxc6 {[%emt 0:00:07]} 9. O-O {[%emt 0:00:09]} e6 {[%emt 0:07:52]} 10. d3 {[%emt 0:00:36]} Be7 {[%emt 0:05:05]} 11. Qa4 {[%emt 0:03:26]} Qc7 {[%emt 0:18:13]} 12. e4 {[%emt 0:01:05]} Bg6 {[%emt 0:08:15]} 13. exd5 {[%emt 0:02:38]} exd5 {[%emt 0:04:02]} 14. Nxd5 {[%emt 0:02:07]} Nxd5 {[%emt 0:00:12]} 15. Bxd5 {[%emt 0:00:06]} O-O {[%emt 0:01:24]} 16. Be4 {[%emt 0:03:33]} Bf6 17. Bf4 {[%emt 0:00:31]} Qb6 {[%emt 0:02:49]} 18. Rac1 {[%emt 0:00:09]} Qxb2 {[%emt 0:01:54]} 19. Rxc6 {[%emt 0:01:01]} Rad8 {[%emt 0:07:08]} 20. Rc2 {[%emt 0:03:51]} Rd4 {[%emt 0:01:22]} 21. Qc6 {[%emt 0:01:57]} Qb4 {[%emt 0:02:18]} 22. Be3 {[%emt 0:02:36]} Bxe4 {[%emt 0:07:01]} 23. dxe4 {[%emt 0:00:14]} Rd6 {[%emt 0:00:02]} 24. Qc4 {[%emt 0:01:15]} Qxc4 {[%emt 0:00:08]} 25. Rxc4 {[%emt 0:00:05]} Ra6 {[%emt 0:00:15]} 26. a4 {[%emt 0:00:10]} h5 {[%emt 0:01:11]} 27. Rb1 Rd8 {[%emt 0:00:30]} 28. Rb5 {[%emt 0:02:46]} Rd1+ {[%emt 0:05:10]} 29. Kg2 {[%emt 0:00:06]} Ra1 {[%emt 0:05:58]} 30. Rc8+ {[%emt 0:05:03]} Kh7 {[%emt 0:00:06]} 31. Rxh5+ {[%emt 0:00:06]} Kg6 {[%emt 0:00:03]} 32. g4 {[%emt 0:00:05]} R1xa4 {[%emt 0:01:33]} 33. Rg8 {[%emt 0:00:41]} 1-0

[Event "XLII Barbera Open 2019"]
[Site "Barbera"]
[Date "2019.07.07"]
[Round "4.9"]
[White "Lopez Gonzalez, Abel Fabian"]
[Black "Perez Mitjans, Orelvis"]
[Result "1-0"]
[ECO "A67"]
[WhiteElo "2355"]
[BlackElo "2416"]
[Annotator "NA"]
[PlyCount "109"]
[EventDate "2019.07.04"]
[EventType "swiss"]
[EventCountry "ESP"]
[SourceTitle "playchess.com"]
[Source "ChessBase"]
[SourceQuality "1"]
[TimeControl "5400+30"]

1. d4 {[%emt 0:16:01]} Nf6 {[%emt 0:01:23]} 2. c4 {[%emt 0:00:07]} c5 {[%emt 0:00:08]} 3. d5 {[%emt 0:00:08]} e6 {[%emt 0:00:05]} 4. Nc3 {[%emt 0:00:10]} exd5 {[%emt 0:00:06]} 5. cxd5 {[%emt 0:00:05]} d6 {[%emt 0:00:08]} 6. e4 {[%emt 0:00:10]} g6 {[%emt 0:00:04]} 7. f4 {[%emt 0:00:13]} Bg7 {[%emt 0:00:09]} 8. Bb5+ {[%emt 0:00:10]} Nfd7 {[%emt 0:00:06]} 9. Bd3 {[%emt 0:00:31]} O-O {[%emt 0:04:45]} 10. Nf3 {[%emt 0:00:15]} Na6 {[%emt 0:00:59]} 11. O-O {[%emt 0:00:48]} Nc7 {[%emt 0:03:00]} 12. a4 {[%emt 0:07:48]} Na6 {[%emt 0:07:59]} 13. Nb5 Nf6 {[%emt 0:01:07]} 14. Nd2 {[%emt 0:09:02]} Nb4 {[%emt 0:16:03]} 15. Nc4 {[%emt 0:00:57]} Ng4 {[%emt 0:00:30]} 16. Be2 {[%emt 0:22:05]} a6 {[%emt 0:03:26]} 17. Ncxd6 {[%emt 0:12:15]} axb5 {[%emt 0:00:46]} 18. e5 {[%emt 0:00:32]} Qh4 {[%emt 0:30:54]} 19. h3 {[%emt 0:00:55]} Nh6 {[%emt 0:03:31]} 20. Nxc8 {[%emt 0:13:41]} Rfxc8 {[%emt 0:01:14]} 21. Bxb5 {[%emt 0:00:09]} Nf5 {[%emt 0:01:45]} 22. Bd7 {[%emt 0:02:19]} Rd8 {[%emt 0:00:07]} 23. Bxf5 {[%emt 0:00:05]} gxf5 {[%emt 0:00:05]} 24. d6 {[%emt 0:00:03]} c4 {[%emt 0:01:13]} 25. b3 Rac8 {[%emt 0:12:54]} 26. Be3 {[%emt 0:10:33]} c3 {[%emt 0:04:48]} 27. Rc1 {[%emt 0:00:19]} Qh6 {[%emt 0:01:16]} 28. Qd4 {[%emt 0:00:57]} Nc6 {[%emt 0:00:12]} 29. Qb6 {[%emt 0:00:11]} Nb8 {[%emt 0:02:10]} 30. Rxc3 {[%emt 0:01:01]} Re8 {[%emt 0:01:44]} 31. Rxc8 {[%emt 0:01:35]} Rxc8 {[%emt 0:00:01]} 32. Qxb7 {[%emt 0:00:24]} Qe6 {[%emt 0:00:35]} 33. Rd1 {[%emt 0:00:46]} Bf8 {[%emt 0:01:39]} 34. a5 {[%emt 0:00:51]} Nc6 {[%emt 0:01:00]} 35. a6 {[%emt 0:00:28]} Nd8 {[%emt 0:00:31]} 36. Qb5 {[%emt 0:01:16]} Rc2 {[%emt 0:00:30]} 37. a7 {[%emt 0:00:31]} Ra2 {[%emt 0:00:08]} 38. Rd2 {[%emt 0:00:35]} Ra1+ {[%emt 0:00:46]} 39. Kh2 {[%emt 0:00:01]} Qc8 40. Bd4 {[%emt 0:01:19]} Ra3 {[%emt 0:00:37]} 41. Qc5 {[%emt 0:00:40]} Qa6 {[%emt 0:00:26]} 42. Qc4 {[%emt 0:00:30]} Qb7 {[%emt 0:00:53]} 43. Rd3 {[%emt 0:00:26]} Ne6 {[%emt 0:00:53]} 44. Rg3+ {[%emt 0:00:09]} Kh8 {[%emt 0:00:19]} 45. Bg1 {[%emt 0:00:42]} Bh6 {[%emt 0:00:28]} 46. Rf3 {[%emt 0:00:28]} Ra2 {[%emt 0:00:30]} 47. Bf2 {[%emt 0:00:29]} Kg7 {[%emt 0:00:39]} 48. b4 {[%emt 0:00:20]} Ra4 {[%emt 0:00:23]} 49. Be3 {[%emt 0:00:30]} Ra3 {[%emt 0:00:20]} 50. Qc1 {[%emt 0:00:52]} Ra2 {[%emt 0:00:40]} 51. Rg3+ {[%emt 0:00:17]} Kf8 {[%emt 0:00:25]} 52. b5 {[%emt 0:00:12]} f6 {[%emt 0:00:48]} 53. Qc6 {[%emt 0:00:22]} Qxc6 {[%emt 0:00:43]} 54. bxc6 {[%emt 0:00:01]} fxe5 {[%emt 0:00:36]} 55. c7 {[%emt 0:00:14]} 1-0

[Event "XLII Barbera Open 2019"]
[Site "Barbera"]
[Date "2019.07.07"]
[Round "4.10"]
[White "Ros Alonso, Jaume"]
[Black "Berdayes Ason, Dylan Isidro"]
[Result "0-1"]
[ECO "B66"]
[WhiteElo "2178"]
[BlackElo "2461"]
[Annotator "ChessBase"]
[PlyCount "86"]
[EventDate "2019.07.04"]
[EventType "swiss"]
[EventCountry "ESP"]
[SourceTitle "playchess.com"]
[Source "ChessBase"]
[SourceQuality "1"]
[TimeControl "5400+30"]

1. e4 c5 2. Nf3 d6 3. d4 cxd4 4. Nxd4 Nf6 5. Nc3 Nc6 6. Bg5 e6 7. Qd2 a6 8. O-O-O h6 9. Nxc6 bxc6 10. Bf4 d5 11. Qe3 Bb4 12. Kb1 O-O 13. f3 Nd7 14. e5 f6 15. exf6 Qxf6 16. Ne2 e5 17. Bg3 Rb8 18. Ka1 Bc5 19. Qc3 a5 20. f4 Bb4 21. Qe3 e4 22. c3 Bc5 23. Nd4 a4 24. a3 Rb6 25. Qd2 Ba6 26. f5 Bxd4 27. cxd4 Qxf5 28. Bxa6 Rxa6 29. Qe2 Rfa8 30. Rhf1 Qe6 31. Rc1 Nb6 32. Be5 Nc4 33. Rxc4 dxc4 34. Qxe4 c3 35. Rf2 Rb6 36. bxc3 Qb3 37. Bd6 Qxc3+ 38. Ka2 Qb3+ 39. Ka1 Rab8 40. Bb4 Rxb4 41. axb4 Qa3+ 42. Ra2 Qc3+ 43. Rb2 a3 0-1